bitfinex/quotes_ETHUSD_20220213
["timestamp","ask_amount","ask_price","bid_price","bid_amount"]
[1644710596004,0.1719,2909.0,2908.0,2.1]
[1644710596298,0.1719,2909.0,2908.1,11.32421274]
[1644710596496,0.1719,2909.0,2908.3,1.04337527]
[1644710596697,0.1719,2909.0,2908.9,1.83494484]
[1644710596894,0.1718,2909.6,2908.9,0.495]
[1644710597139,1.46240924,2909.5,2908.9,0.495]
[1644710597343,1.46240924,2909.5,2909.0,0.00315124]
[1644710597543,0.01020351,2909.1,2909.0,0.49815124]
[1644710597743,0.01020351,2909.1,2909.0,0.495]
[1644710598348,0.1718,2909.6,2909.0,0.495]
[1644710598544,1.46237159,2909.5,2909.0,0.47430276]
[1644710598745,0.01020338,2909.2,2909.0,0.47430276]
[1644710598951,0.01020338,2909.2,2909.1,0.17209129]
[1644710599145,0.01020338,2909.2,2909.1,0.66709129]
[1644710599346,0.01020338,2909.2,2909.1,0.96709129]
[1644710599545,0.1718,2910.5,2909.1,0.96709129]
[1644710599744,1.4621259,2910.4,2909.6,0.84376572]
[1644710599945,1.4621259,2910.4,2909.7,0.00315124]
[1644710600144,1.6339259,2910.3,2909.7,0.00315124]
[1644710600446,1.4621259,2910.2,2909.5,0.00315124]
[1644710600644,0.1718,2910.2,2909.5,0.00315124]
[1644710600899,1.4621259,2910.1,2909.5,0.00315124]
[1644710601191,1.47167316,2910.0,2909.7,0.94390767]
[1644710601391,0.00954726,2910.0,2909.7,0.94705891]
[1644710601595,0.00954726,2910.0,2909.7,0.94390767]
[1644710602092,0.1718,2910.6,2909.7,0.94390767]
[1644710602298,0.00954726,2910.0,2909.7,0.94390767]
[1644710602495,0.00954726,2910.0,2909.7,1.24390767]
[1644710602895,0.00954726,2910.0,2909.7,1.54390767]
[1644710603198,0.1718,2910.6,2909.7,2.03890767]
[1644710603396,0.1718,2910.6,2909.9,0.85889]
[1644710603397,1.4620823,2910.5,2909.9,0.85889]
[1644710603597,0.00954726,2910.0,2909.9,1.15889]
[1644710603797,0.00954726,2910.0,2909.9,1.45889]
[1644710604200,0.00954726,2910.0,2909.9,0.6]
[1644710604396,0.1718,2910.6,2909.9,0.3]
[1644710604642,0.00954713,2910.1,2909.8,0.01074578]
[1644710605643,0.1718,2910.6,2909.8,0.01074578]
[1644710605843,0.0095833,2910.1,2909.8,0.01074578]
[1644710606246,0.0095833,2910.1,2909.8,1.01074578]
[1644710606447,0.0095833,2910.1,2909.8,0.01074578]
[1644710606644,0.0095833,2910.1,2909.8,1.01074578]
[1644710606848,0.1313833,2910.6,2909.8,1.01074578]
[1644710607044,0.0095833,2910.1,2909.8,1.01074578]
[1644710607248,0.0095833,2910.1,2909.8,0.01074578]
[1644710607450,0.00100189,2910.0,2909.8,0.01074578]
[1644710610399,1.89e-06,2910.0,2909.8,0.01074578]
[1644710610602,1.89e-06,2910.0,2909.9,0.66709129]
[1644710610903,0.1718,2911.7,2909.9,13.49309932]
[1644710610904,0.00958027,2910.2,2909.9,13.49309932]
[1644710611098,0.00958027,2910.2,2910.0,0.17209129]
[1644710611298,0.00958027,2910.2,2910.1,0.495]
[1644710611701,0.1718,2911.3,2910.1,0.495]
[1644710612003,3.42646348,2911.8,2910.1,0.495]
[1644710612004,0.00958061,2910.3,2910.1,0.495]
[1644710612850,0.1718,2911.3,2909.8,1.90023578]
[1644710612851,0.1718,2911.3,2909.8,0.18254578]
[1644710613051,3.92488664,2911.6,2909.8,0.01074578]
[1644710613052,0.00958095,2910.3,2909.8,0.01074578]
[1644710613949,0.1718,2911.3,2909.8,0.01074578]
[1644710614149,1.05125158,2911.1,2909.8,0.01074578]
[1644710614350,1.4933,2911.6,2910.0,0.01155931]
[1644710614351,0.00958098,2910.2,2910.0,0.01155931]
[1644710615151,0.03830904,2911.4,2910.0,0.01155931]
[1644710615350,1.17701616,2911.0,2910.0,0.01155931]
[1644710615550,0.00958108,2910.2,2910.0,0.01155931]
[1644710616396,1.17701616,2911.0,2910.0,0.01155931]
[1644710616592,0.00958104,2910.2,2910.0,0.01155931]
[1644710617598,0.1716,2910.9,2910.0,0.01155931]
[1644710617799,0.00958104,2910.2,2910.0,0.01155931]
[1644710618802,1.17701616,2911.0,2910.0,0.01155931]
[1644710619000,0.00582202,2910.2,2910.0,0.01155931]
[1644710619756,0.00582202,2910.2,2909.8,1.28771083]
[1644710619952,1.17701616,2911.0,2909.8,1.28771083]
[1644710620253,0.00582202,2910.2,2909.7,1.24390767]
[1644710620453,0.00582202,2910.2,2909.8,1.0]
[1644710620653,0.00582202,2910.2,2909.7,1.24390767]
[1644710621055,0.00582202,2910.2,2909.8,1.03103129]
[1644710621356,0.1718,2911.3,2909.8,1.33103129]
[1644710621553,0.00582172,2910.2,2909.8,1.33103129]
[1644710621754,0.00582172,2910.2,2909.8,2.33103129]
[1644710622363,1.1440492,2911.2,2909.8,2.33103129]
[1644710622759,0.00958603,2910.2,2909.8,2.33103129]
[1644710623594,0.1716,2911.1,2909.8,2.33103129]
[1644710623795,0.1716,2911.1,2910.2,0.99139981]
[1644710624495,0.1716,2911.3,2910.2,0.99139981]
[1644710624695,1.46175466,2911.2,2910.2,0.99139981]
[1644710624903,0.1716,2911.1,2910.2,0.99139981]
[1644710625096,0.0097113,2910.9,2910.2,0.99139981]
[1644710625296,0.0097113,2910.9,2910.2,1.85020981]
[1644710625695,0.0097113,2910.9,2910.7,1.08303944]
[1644710625897,0.47611315,2910.5,2910.3,1.0768838]
[1644710627247,0.47611315,2910.5,2910.3,1.24897509]
[1644710627450,0.48569051,2910.5,2910.3,1.24897509]
[1644710628447,0.47611315,2910.5,2910.4,3.47509927]
[1644710628652,0.48569051,2910.5,2910.4,3.97009927]
[1644710628847,0.00957736,2910.5,2910.4,5.14219056]
[1644710629646,0.1716,2911.8,2910.4,5.14219056]
[1644710629846,0.0095773,2910.6,2910.5,1.1717]
[1644710630051,0.0095773,2910.6,2910.5,6.70470847]
[1644710630247,0.03829889,2911.4,2911.0,1.16721707]
[1644710630889,0.1716,2911.8,2910.7,0.795]
[1644710631092,0.1716,2911.8,2910.5,1.94379129]
[1644710631093,1.4614888,2911.7,2910.5,0.34379129]
[1644710631296,0.1716,2911.6,2910.5,0.1717]
[1644710631491,1.4614888,2911.5,2910.5,0.1717]
[1644710631889,1.15026153,2911.3,2910.5,0.1717]
[1644710632090,1.4614888,2911.2,2910.5,0.1717]
[1644710632293,1.6330888,2911.2,2910.5,0.1717]
[1644710632494,0.1716,2911.2,2910.5,0.1717]
[1644710632697,0.1716,2911.2,2910.4,1.745211]
[1644710634750,0.0102063,2910.9,2910.4,1.745211]
[1644710635647,0.1716,2911.4,2910.4,1.745211]
[1644710635847,0.01020649,2910.8,2910.4,1.745211]
[1644710636748,0.1716,2911.6,2910.4,1.745211]
[1644710637147,0.01020656,2910.7,2910.2,1.0]
[1644710637353,0.01020656,2910.7,2910.1,0.01020896]
[1644710638152,1.31541725,2911.4,2909.8,0.25]
[1644710638396,0.01020612,2910.7,2910.2,0.99989741]
[1644710638595,1.46174876,2910.6,2910.2,0.99989741]
[1644710638796,1.46174876,2910.6,2910.1,0.01020852]
[1644710638994,0.01020612,2910.7,2910.1,0.01020852]
[1644710639197,10.28503277,2911.7,2909.9,2.7482]
[1644710639198,0.1716,2911.5,2909.9,2.7482]
[1644710639396,1.46159091,2911.4,2910.0,5.34538567]
[1644710639596,0.00962812,2910.7,2910.1,0.00963038]
[1644710639797,0.00962812,2910.7,2910.1,0.18172167]
[1644710640195,0.00962812,2910.7,2910.2,1.21379088]
[1644710640395,0.00962812,2910.7,2909.8,1.045]
[1644710640396,1.46175093,2910.6,2910.0,0.3]
[1644710640602,3.76260951,2911.1,2909.9,0.27615152]
[1644710640796,1.46169923,2911.0,2910.1,0.17209129]
[1644710640996,0.00962823,2910.7,2910.1,0.18172179]
[1644710641695,3.49174528,2911.3,2909.9,0.27615152]
[1644710641897,0.00962823,2910.7,2910.5,1.07710572]
[1644710642545,0.00962823,2910.7,2910.5,1.37710572]
[1644710642744,0.00962823,2910.7,2910.5,1.67710572]
[1644710642947,0.1716,2911.3,2910.5,1.37710572]
[1644710643151,0.00948558,2910.7,2910.5,1.37710572]
[1644710643345,0.00948558,2910.7,2910.5,1.67710572]
[1644710643946,4.71632456,2911.4,2910.5,1.67710572]
[1644710644146,1.46160369,2911.3,2910.5,1.67710572]
[1644710644346,0.00952458,2910.7,2910.5,1.67710572]
[1644710645146,3.49059139,2911.3,2910.5,1.67710572]
[1644710645346,1.4616052,2911.2,2910.5,1.67710572]
[1644710645547,0.00952458,2910.7,2910.5,1.67710572]
[1644710646396,0.1716,2911.2,2910.5,1.67710572]
[1644710646595,3.70465242,2911.3,2910.5,1.67710572]
[1644710646596,1.46160496,2911.1,2910.5,1.67710572]
[1644710646797,0.00966767,2910.7,2910.5,1.67710572]
[1644710647200,0.00966767,2910.7,2910.5,0.6]
[1644710647398,0.00966767,2910.7,2910.5,0.3]
[1644710647600,3.70465242,2911.3,2910.2,1.10407131]
[1644710647800,1.46158112,2911.2,2910.3,0.1716]
[1644710647999,0.00967065,2910.7,2910.3,0.1716]
[1644710648200,0.00967065,2910.7,2910.5,1.07924346]
[1644710648404,0.00967065,2910.7,2910.5,1.37924346]
[1644710648602,0.00967065,2910.7,2910.6,0.6666]
[1644710648801,0.00967065,2910.7,2910.6,20.7266]
[1644710649000,3.5,2911.8,2910.6,21.861]
[1644710649200,0.00967065,2910.7,2910.6,21.8586]
[1644710649398,0.00967065,2910.7,2910.6,1.7994]
[1644710649642,0.00967065,2910.7,2910.6,1.6666]
[1644710649843,0.00967065,2910.7,2910.6,1.495]
[1644710650145,0.1716,2911.7,2910.7,0.17172]
[1644710650342,0.0096706,2910.8,2910.7,0.34332]
[1644710650744,0.03867338,2911.5,2911.0,1.71684]
[1644710650950,1.46129332,2911.4,2911.1,1.08478008]
[1644710651141,1.46129332,2911.4,2911.2,0.495]
[1644710651542,1.46129332,2911.3,2911.2,0.795]
[1644710651743,1.46129332,2911.3,2911.2,1.095]
[1644710652144,1.46129332,2911.3,2911.2,0.795]
[1644710652349,1.46129332,2911.3,2911.1,0.3]
[1644710652549,1.46129332,2911.2,2910.8,1.6]
[1644710652752,4.03781725,2911.9,2910.7,0.7716]
[1644710652951,1.46134615,2911.8,2910.7,1.1716]
[1644710653148,1.46134615,2911.8,2910.7,1.4716]
[1644710653793,1.46134615,2911.8,2911.1,0.86587392]
[1644710653993,0.00643064,2911.4,2911.1,1.46587392]
[1644710654194,1.46134615,2911.3,2911.1,1.46587392]
[1644710654601,0.00643064,2911.4,2911.1,1.46587392]
[1644710654799,0.78701722,2912.2,2911.1,1.63757392]
[1644710654998,2.11002024,2912.1,2911.7,0.96379304]
[1644710655199,0.01020578,2911.3,2911.1,0.7717]
[1644710655398,0.01020578,2911.3,2911.2,0.89249028]
[1644710656001,0.59485308,2911.5,2911.2,0.89249028]
[1644710656208,1.46125411,2911.4,2911.2,0.89249028]
[1644710656399,1.47145982,2911.4,2911.2,0.89249028]
[1644710656601,0.01020571,2911.4,2911.2,0.89249028]
[1644710656801,0.01020571,2911.4,2911.2,1.38749028]
[1644710657252,0.59485308,2911.5,2911.2,1.51709028]
[1644710657450,0.01020565,2911.4,2911.3,0.1716]
[1644710658453,0.59485308,2911.5,2911.3,0.1716]
[1644710658653,0.60505866,2911.5,2911.3,0.1716]
[1644710659653,0.59485308,2911.5,2911.3,0.1716]
[1644710659855,0.6050586,2911.5,2911.3,0.1716]
[1644710660891,0.59485308,2911.5,2911.3,0.1716]
[1644710661090,0.60128125,2911.5,2911.3,0.1716]
[1644710661690,0.60128125,2911.5,2911.3,1.44775152]
[1644710661891,0.60128125,2911.5,2911.3,1.74775152]
[1644710662091,0.59485308,2911.5,2911.3,1.74775152]
[1644710662297,0.60128125,2911.5,2911.3,1.74775152]
[1644710663296,0.59485308,2911.5,2911.3,1.74775152]
[1644710663497,0.60506339,2911.5,2911.3,1.74775152]
[1644710664101,0.60506339,2911.5,2911.3,1.57615152]
[1644710664498,0.59485308,2911.5,2911.3,1.57615152]
[1644710664743,0.60506339,2911.5,2911.3,5.05984348]
[1644710664940,0.60506339,2911.5,2911.4,3.41772554]
[1644710665143,0.60506339,2911.5,2911.4,3.91272554]
[1644710665339,0.60506339,2911.5,2911.4,4.91272554]
[1644710665741,0.59485308,2911.5,2911.4,4.91272554]
[1644710666645,0.59485308,2911.5,2911.4,1.495]
[1644710667142,0.59485308,2911.5,2911.4,5.05113668]
[1644710668591,0.59485308,2911.5,2911.4,1.495]
[1644710672444,0.59485308,2911.5,2911.4,0.495]
[1644710672644,0.5960443,2911.5,2911.3,1.57615152]
[1644710674355,0.60625941,2911.5,2911.3,1.57615152]
[1644710675348,0.5960443,2911.5,2911.3,1.57615152]
[1644710675546,0.60625941,2911.5,2911.3,1.57615152]
[1644710676397,0.5960443,2911.5,2911.3,1.57615152]
[1644710676699,0.04085433,2912.0,2911.5,20.06]
[1644710676902,3.5126,2912.5,2911.8,20.06]
[1644710677098,1.46105535,2912.4,2911.9,2.645]
[1644710677300,1.46105535,2912.4,2912.0,0.3]
[1644710677501,1.46105535,2912.4,2912.1,0.495]
[1644710677702,1.46105535,2912.3,2912.2,0.92034426]
[1644710677901,1.46105535,2912.3,2912.2,3.13151426]
[1644710678101,2.1098726,2913.0,2912.2,3.60360555]
[1644710678305,1.46105535,2912.9,2912.3,1.0]
[1644710678503,1.46105535,2912.8,2912.4,0.495]
[1644710678703,1.46105535,2912.7,2912.4,0.495]
[1644710678903,1.46105535,2912.6,2912.4,0.495]
[1644710679105,1.46105535,2912.5,2912.4,0.495]
[1644710679304,1.46105535,2913.0,2912.4,0.495]
[1644710680049,1.46105535,2912.9,2912.4,0.495]
[1644710680242,0.01021578,2912.8,2912.4,1.495]
[1644710680645,0.01021578,2912.8,2912.4,1.795]
[1644710681245,0.1716,2913.5,2912.6,20.06]
[1644710681448,1.4605617,2913.4,2912.8,1.71583]
[1644710681647,8.2707,2913.6,2912.9,4.49929759]
[1644710681654,0.04085753,2913.2,2912.9,4.49929759]
[1644710681845,0.04085753,2913.2,2912.9,5.09929759]
[1644710682048,0.04085753,2913.2,2912.9,6.01677789]
[1644710682256,3.4345,2913.6,2913.1,2.15]
[1644710682453,3.1433,2914.0,2913.2,6.27129694]
[1644710682751,3.1433,2914.0,2913.3,0.495]
[1644710682752,0.04085517,2913.6,2913.3,0.495]
[1644710683697,8.85216219,2914.1,2913.3,0.495]
[1644710683902,5.09836219,2914.1,2914.0,0.89079225]
[1644710684101,1.46038764,2914.1,2914.0,0.89079225]
[1644710684307,0.65277944,2914.4,2914.0,0.89079225]
[1644710684308,1.46038764,2914.3,2914.0,0.89079225]
[1644710684504,1.46038764,2914.2,2914.0,0.89079225]
[1644710684703,1.46038764,2914.1,2913.3,1.52485129]
[1644710684909,1.46038764,2914.0,2913.3,1.52485129]
[1644710685302,1.46038764,2914.0,2913.3,0.66709129]
[1644710685505,1.46038764,2913.9,2913.3,0.66709129]
[1644710685703,1.46038764,2913.8,2913.3,0.66709129]
[1644710686003,0.1716,2914.1,2913.6,1.09592134]
[1644710686004,1.46038764,2913.7,2913.6,1.09592134]
[1644710686203,0.00396219,2914.0,2913.6,1.09592134]
[1644710686204,0.00396219,2914.1,2913.6,1.09592134]
[1644710686404,0.01021467,2913.7,2913.6,1.09592134]
[1644710687353,0.00396219,2914.2,2913.6,1.09592134]
[1644710687560,0.01021453,2913.8,2913.6,1.09592134]
[1644710688454,0.00396219,2914.4,2913.6,1.09592134]
[1644710688656,0.01021447,2913.8,2913.6,1.09592134]
[1644710689659,0.17556219,2914.5,2913.6,1.09592134]
[1644710689856,0.01021447,2913.8,2913.6,1.09592134]
[1644710690994,0.00396219,2914.3,2913.6,1.09592134]
[1644710691198,0.01021447,2913.8,2913.6,1.09592134]
[1644710691998,0.00396219,2914.5,2913.6,1.09592134]
[1644710692200,1.46024773,2914.4,2913.6,1.09592134]
[1644710692402,0.01021447,2913.8,2913.6,1.09592134]
[1644710693202,0.00396219,2914.5,2913.6,1.95374134]
[1644710693402,1.46026139,2914.4,2913.6,1.95374134]
[1644710693605,0.01021447,2913.8,2913.6,1.95374134]
[1644710694503,0.9896621,2914.5,2913.6,1.95374134]
[1644710694746,0.01021447,2913.8,2913.6,1.09592134]
[1644710695744,0.00396219,2914.3,2913.6,1.09592134]
[1644710695946,0.01021447,2913.8,2913.6,1.09592134]
[1644710696649,0.01021447,2913.8,2913.3,0.34359129]
[1644710696847,0.04481393,2914.3,2913.3,0.34359129]
[1644710696848,5.1716,2914.2,2913.3,0.1715]
[1644710697050,5.1716,2914.2,2913.1,0.25]
[1644710697051,0.1716,2913.7,2913.1,0.25]
[1644710697252,1.46060495,2913.6,2913.1,0.01021724]
[1644710697456,1.24063284,2913.7,2913.1,0.01021724]
[1644710697656,1.06903284,2913.7,2913.1,0.01021724]
[1644710698050,1.06903284,2913.7,2912.9,1.04729467]
[1644710698051,1.46059042,2913.6,2912.9,1.04729467]
[1644710698251,1.63219042,2913.6,2912.9,1.04729467]
[1644710698500,1.06903284,2913.7,2912.9,1.04729467]
[1644710698501,0.01021486,2913.5,2913.1,0.01021659]
[1644710699300,0.00396219,2913.9,2912.9,1.04729467]
[1644710699500,0.18123462,2913.4,2913.1,0.00963591]
[1644710699904,0.00963462,2913.4,2913.1,0.00963591]
[1644710700504,0.00396219,2913.9,2913.0,0.85799]
[1644710700703,0.00963467,2913.4,2913.1,0.0096358]
[1644710701404,0.00963467,2913.4,2913.3,1.07432516]
[1644710701603,0.00396219,2913.9,2913.3,1.07432516]
[1644710702005,0.00963467,2913.4,2913.3,1.07432516]
[1644710702451,0.00963467,2913.4,2913.1,0.18172709]
[1644710702854,0.17556219,2913.9,2913.1,0.17209129]
[1644710703252,0.00963467,2913.4,2913.1,0.18172709]
[1644710703450,0.00963467,2913.4,2913.2,0.1716]
[1644710703850,0.00963467,2913.4,2913.2,0.34369129]
[1644710704152,0.93544466,2913.9,2913.2,0.17209129]
[1644710704350,0.0096738,2913.4,2913.2,0.17209129]
[1644710704751,0.00854053,2913.4,2913.2,0.17209129]
[1644710705354,0.00396219,2913.9,2913.2,0.17209129]
[1644710705751,0.17556219,2914.1,2913.2,0.17209129]
[1644710706006,1.46037332,2914.0,2913.2,0.17209129]
[1644710706206,1.05619362,2913.9,2913.2,0.17209129]
[1644710706706,0.00396219,2913.9,2913.2,0.17209129]
[1644710706909,0.00396219,2913.9,2913.3,0.495]
[1644710707309,0.00396219,2913.9,2913.4,0.17209129]
[1644710707513,0.1716,2914.1,2913.4,0.66709129]
[1644710707514,0.17556219,2914.1,2913.4,0.66709129]
[1644710707917,0.17556219,2914.1,2913.5,0.17209129]
[1644710708110,0.01021453,2913.8,2913.5,0.17209129]
[1644710708310,0.01021453,2913.8,2913.6,0.97704322]
[1644710708510,0.01021453,2913.8,2913.6,1.27704322]
[1644710708710,0.01021453,2913.8,2913.7,0.17209129]
[1644710708913,0.17556219,2914.1,2913.7,0.17209129]
[1644710709112,0.01021447,2913.8,2913.7,0.17209129]
[1644710710151,0.17556219,2914.1,2913.7,0.17209129]
[1644710710350,0.0102144,2913.9,2913.7,0.17209129]
[1644710710955,0.0102144,2913.9,2913.7,4.55786807]
[1644710711153,0.04085148,2914.3,2913.9,2.15]
[1644710711354,0.00396219,2914.5,2914.0,0.6665]
[1644710711551,0.1715,2914.6,2914.0,0.6665]
[1644710711552,0.04085121,2914.4,2914.0,2.38154]
[1644710711753,0.04085121,2914.4,2914.0,3.85363129]
[1644710711951,0.04085121,2914.4,2914.1,1.17216089]
[1644710712152,0.04085121,2914.4,2914.2,0.495]
[1644710712558,0.00396219,2914.6,2914.2,0.96709129]
[1644710712757,3.44776219,2914.7,2914.6,1.09311321]
[1644710712957,0.46408782,2914.3,2914.2,0.96709129]
[1644710713161,0.46408782,2914.3,2914.2,1.84796334]
[1644710714697,0.46408782,2914.3,2914.2,1.67587205]
[1644710715802,0.46408782,2914.3,2914.2,0.495]
[1644710716103,0.46408782,2914.3,2913.7,0.495]
[1644710716301,0.1715,2914.2,2913.1,0.52587774]
[1644710716504,0.1715,2914.2,2912.6,7.07455053]
[1644710716505,0.00396219,2914.1,2913.4,0.01021718]
[1644710716701,0.94857086,2913.8,2913.4,0.01021718]
[1644710717348,0.94857086,2913.8,2912.7,0.17161]
[1644710717549,0.94857086,2913.8,2913.4,0.01021576]
[1644710717550,0.00396219,2913.7,2913.4,0.01021576]
[1644710717750,0.94857086,2913.8,2913.4,0.01021576]
[1644710718550,0.94857086,2913.8,2912.8,0.94332899]
[1644710718752,0.00396219,2913.7,2913.4,0.01021576]
[1644710719050,0.94857086,2913.8,2913.4,0.01021576]
[1644710719254,0.1716,2913.7,2913.4,0.01021576]
[1644710719452,1.46041419,2913.6,2913.4,0.01021576]
[1644710719653,0.1716,2913.5,2913.4,0.01021576]
[1644710719855,1.63201419,2913.5,2912.2,1.93162]
[1644710720052,1.46056596,2913.4,2912.2,2.10371129]
[1644710720252,0.17556219,2913.7,2912.3,0.1716]
[1644710720455,1.46056747,2913.6,2912.8,0.87177836]
[1644710720654,0.00396219,2913.5,2912.8,0.87177836]
[1644710720899,1.63216747,2913.4,2912.8,0.87177836]
[1644710721094,1.46056747,2913.3,2912.8,0.87177836]
[1644710721293,0.17556219,2913.7,2913.0,0.00955609]
[1644710721494,1.46054393,2913.6,2913.0,0.00955609]
[1644710721694,0.1716,2913.5,2913.0,0.00955609]
[1644710721895,1.46054393,2913.4,2913.0,0.00955609]
[1644710722200,1.46054393,2913.4,2912.8,0.87177836]
[1644710722398,1.46054393,2913.4,2913.1,0.00955595]
[1644710722399,1.46054393,2913.3,2913.1,0.00955595]
[1644710723000,1.46054393,2913.2,2913.1,0.00955595]
[1644710723405,1.46054393,2913.2,2912.8,0.87177836]
[1644710723602,0.17556219,2913.7,2913.0,0.00955609]
[1644710723805,1.46055138,2913.6,2913.0,0.00955609]
[1644710724002,0.1716,2913.5,2913.0,0.00955609]
[1644710724201,1.46055138,2913.4,2913.0,0.00955609]
[1644710724655,1.46055138,2913.4,2912.8,0.87177836]
[1644710724850,1.46451357,2913.5,2913.1,0.00960032]
[1644710725055,1.46055138,2913.3,2913.1,0.00960032]
[1644710725251,1.46055138,2913.2,2913.1,0.00960032]
[1644710725450,0.17556219,2913.7,2913.1,0.00960032]
[1644710725451,2.28493082,2913.7,2913.1,0.00960032]
[1644710725649,1.46055138,2913.6,2913.1,0.00960032]
[1644710725853,0.1716,2913.5,2912.8,0.87177836]
[1644710726057,1.46055138,2913.4,2913.3,0.00960005]
[1644710726956,1.46055138,2913.5,2912.4,0.17209129]
[1644710727158,1.46055138,2913.5,2913.2,0.00960012]
[1644710727159,5.6666,2913.4,2913.2,0.00960012]
[1644710727357,5.6666,2913.4,2913.2,1.2e-07]
[1644710727358,5.09795138,2913.3,2913.2,1.2e-07]
[1644710727555,5.59295138,2913.3,2913.2,1.2e-07]
[1644710727756,10.19656863,2913.3,2913.2,1.2e-07]
[1644710728157,9.54775138,2913.3,2911.4,0.17209129]
[1644710728397,9.54775138,2913.3,2912.1,0.91249802]
[1644710728398,0.99671395,2912.7,2912.1,0.91249802]
[1644710728605,1.46055138,2912.6,2912.1,0.91249802]
[1644710728800,1.46055138,2912.5,2912.1,0.91249802]
[1644710729097,7.58147311,2913.2,2912.1,0.91249802]
[1644710729296,1.46085428,2913.1,2912.1,0.91249802]
[1644710729720,1.46085428,2913.1,2911.4,1.17209129]
[1644710729721,0.86533792,2912.8,2911.4,1.17209129]
[1644710729900,1.46085428,2912.7,2911.4,0.17209129]
[1644710730107,1.46085428,2912.7,2911.0,0.42209129]
[1644710730108,2.28592739,2912.7,2911.0,0.42209129]
[1644710730301,1.59905425,2912.6,2911.0,0.42209129]
[1644710730504,1.63245428,2912.5,2911.0,0.42209129]
[1644710730703,0.88959874,2912.2,2911.5,1.09030269]
[1644710730904,0.13819997,2912.6,2911.7,0.00386371]
[1644710731105,1.46101231,2912.5,2911.7,0.00386371]
[1644710731704,1.46101231,2912.5,2911.5,1.09030269]
[1644710732260,2.4891397,2912.5,2912.0,0.01021761]
[1644710732463,1.46101231,2912.4,2912.0,0.01021761]
[1644710733065,1.46101231,2912.4,2911.5,1.09030269]
[1644710733261,0.13819997,2912.6,2912.1,0.01021748]
[1644710733462,0.02043495,2912.0,2911.5,1.09030269]
[1644710735663,0.02043495,2912.0,2911.6,0.00385664]
[1644710736498,0.02043495,2912.0,2911.5,1.09030269]
[1644710736901,0.02043495,2912.0,2911.7,0.010218]
[1644710737802,0.02043495,2912.0,2911.5,1.09030269]
[1644710738002,0.02043495,2912.0,2911.7,0.01021794]
[1644710738908,0.02043495,2912.0,2911.5,1.09030269]
[1644710739304,0.02043495,2912.0,2911.7,0.01021794]
[1644710740148,0.02043495,2912.0,2911.5,1.09030269]
[1644710740546,0.02043495,2912.0,2911.7,0.01021794]
[1644710741451,0.02043495,2912.0,2911.5,1.09030269]
[1644710741646,0.02043495,2912.0,2911.7,0.01021794]
[1644710742657,0.02043495,2912.0,2911.5,1.94874269]
[1644710742854,0.02043495,2912.0,2911.7,0.01021794]
[1644710743698,0.02043495,2912.0,2911.5,1.94874269]
[1644710744104,0.02043495,2912.0,2911.7,0.01021794]
[1644710745101,0.02043495,2912.0,2911.5,1.94874269]
[1644710745301,0.02043495,2912.0,2911.7,0.01021794]
[1644710746203,0.02043495,2912.0,2911.5,1.94874269]
[1644710746402,0.02043495,2912.0,2911.7,0.01021794]
[1644710747458,0.02043495,2912.0,2911.8,0.83869129]
[1644710747658,0.02043495,2912.0,2911.9,3.84989306]
[1644710747853,0.01021404,2912.8,2912.0,2.15]
[1644710748052,0.01021404,2912.8,2912.1,4.92989413]
[1644710748253,0.01021404,2912.8,2912.2,1.17668553]
[1644710748453,0.01021404,2912.8,2912.3,0.495]
[1644710748750,0.1716,2913.5,2912.3,0.495]
[1644710748751,0.1716,2913.5,2913.1,0.93242848]
[1644710748950,1.46062168,2913.4,2913.1,0.93242848]
[1644710750149,1.47083675,2913.4,2913.1,0.93242848]
[1644710750348,0.01021507,2913.4,2913.1,0.93242848]
[1644710751003,0.1716,2913.5,2913.1,0.93242848]
[1644710751202,1.47085613,2913.4,2913.1,0.93242848]
[1644710751405,1.46064106,2913.3,2913.1,0.93242848]
[1644710752410,0.01021513,2913.3,2913.1,0.93242848]
[1644710753311,0.00396219,2913.7,2913.1,0.93242848]
[1644710753512,0.6255366,2913.0,2912.5,1.06960401]
[1644710753714,0.6255366,2913.0,2912.6,0.84773351]
[1644710754949,0.01021566,2912.9,2912.6,0.84773351]
[1644710755750,0.6255366,2913.0,2912.6,0.84773351]
[1644710756149,0.01021573,2912.9,2912.6,0.84773351]
[1644710756957,0.6255366,2913.0,2912.6,0.84773351]
[1644710757256,0.01021573,2912.9,2912.6,0.84773351]
[1644710758257,0.6255366,2913.0,2912.6,0.84773351]
[1644710758501,0.01021573,2912.9,2912.6,0.84773351]
[1644710759400,0.6255366,2913.0,2912.6,0.84773351]
[1644710759604,0.01021573,2912.9,2912.6,0.84773351]
[1644710759803,0.01021573,2912.9,2912.6,1.0198248]
[1644710760604,0.6255366,2913.0,2912.6,1.0198248]
[1644710760902,0.01021573,2912.9,2912.6,1.0198248]
[1644710761901,0.6255366,2913.0,2912.6,1.0198248]
[1644710762157,1.47087199,2912.9,2912.6,1.0198248]
[1644710762359,0.01021573,2912.9,2912.6,1.0198248]
[1644710762960,0.6255366,2913.0,2912.6,1.0198248]
[1644710763162,1.46064495,2912.9,2912.6,1.0198248]
[1644710763362,1.47086068,2912.9,2912.6,1.0198248]
[1644710763564,0.01021573,2912.9,2912.6,1.0198248]
[1644710763861,1.46067462,2912.8,2912.6,0.84773351]
[1644710764462,0.01021579,2912.8,2912.6,0.84773351]
[1644710765063,0.01021579,2912.8,2912.6,1.0198248]
[1644710765263,0.01021579,2912.8,2912.6,0.84773351]
[1644710765463,0.6255366,2913.0,2912.6,0.84773351]
[1644710765664,0.01021579,2912.8,2912.6,0.84773351]
[1644710766698,0.6255366,2913.0,2912.6,1.0198248]
[1644710766898,0.01021579,2912.8,2912.6,1.0198248]
[1644710767902,0.6255366,2913.0,2912.6,1.0198248]
[1644710768104,0.01021579,2912.8,2912.6,1.0198248]
[1644710769108,0.6255366,2913.0,2912.6,1.0198248]
[1644710769308,0.00637369,2912.8,2912.6,1.0198248]
[1644710771347,0.6255366,2913.0,2912.6,1.0198248]
[1644710771845,0.00637369,2912.8,2912.6,1.0198248]
[1644710772652,0.6255366,2913.0,2912.6,1.0198248]
[1644710772852,0.01022102,2912.8,2912.6,1.0198248]
[1644710773898,0.6255366,2913.0,2912.6,1.0198248]
[1644710773899,0.6255366,2913.0,2912.6,0.9698248]
[1644710774100,0.01022102,2912.8,2912.6,0.9698248]
[1644710775009,0.6255366,2913.0,2912.6,0.9698248]
[1644710775203,0.01022102,2912.8,2912.6,0.9698248]
[1644710776302,0.6255366,2913.0,2912.6,0.9698248]
[1644710776502,0.01022102,2912.8,2912.6,0.9698248]
[1644710777351,0.6255366,2913.0,2912.6,0.9698248]
[1644710777856,0.01022102,2912.8,2912.6,0.9698248]
[1644710778654,0.6255366,2913.0,2912.6,0.9698248]
[1644710778854,0.01022102,2912.8,2912.6,0.9698248]
[1644710779853,0.6255366,2913.0,2912.6,0.9698248]